Cogmind - Beta 14 @@@ ROGUE MODE // 2024.10.05 @ 16:25:47 Player: Null_error Result: Destroyed by YI-UF0 with YI-UF0's Doublenader Performance ------------- Evolutions (0) 0 Regions Visited (2) 400 Robots Destroyed (2) 10 Value Destroyed (13) 13 Prototype IDs (0) 0 Alien Tech Used (0) 0 Bonus (0) 0 TOTAL SCORE: 423 Bonus ------- None Cogmind --------- Core Integrity 0/250 Matter 137/300 Energy 186/250 System Corruption 2% Temperature Cool (0) Movement Walking (120) Location -10/Mines Parts ------- > --- POWER (1) -------- Ion Engine > --- PROPULSION (2) --- Aluminum Leg Aluminum Leg > --- UTILITY (2) ------ Small Storage Unit > --- WEAPON (2) ------- Rocket Launcher Mining Laser > --- INVENTORY (8) ---- Structural Scanner Experimental Sensor Array Peak State ------------ > --- POWER ------------ Ion Engine > --- PROPULSION ------- Wheel Compact Wheel > --- UTILITY ---------- Small Storage Unit Seismic Detector > --- WEAPON ----------- Medium Laser Light Assault Rifle > --- INVENTORY -------- Ion Engine Aluminum Leg Aluminum Leg Structural Scanner Experimental Sensor Array Grenade Launcher Rocket Launcher Mining Laser [Rating: 8] Favorites ----------- Power Ion Engine Engine Ion Engine Propulsion Wheel Leg Aluminum Leg Wheel Wheel Utility Small Storage Unit Device Seismic Detector Storage Small Storage Unit Weapon Light Assault Rifle Energy Gun Medium Laser Ballistic Gun Light Assault Rifle Launcher Grenade Launcher Special Weapon Mining Laser Build | -11 -10 -10 ------- Run | Yrd Mat Min Slots Evolved . | . . . Power . | . . . Propulsion . | . . . Utility . | . . . Weapon . | . . . Parts Attached 13 | 7 . 6 Power 2 | 1 . 1 Engine 2 | 1 . 1 Core . | . . . Reactor . | . . . Propulsion 4 | 2 . 2 Treads . | . . . Leg 2 | . . 2 Wheel 2 | 2 . . Hover . | . . . Flight . | . . . Utility 2 | 2 . . Device 1 | 1 . . Storage 1 | 1 . . Processor . | . . . Hackware . | . . . Protection . | . . . Artifact . | . . . Weapon 5 | 2 . 3 Energy Gun 1 | 1 . . Energy Cannon . | . . . Ballistic Gun 1 | 1 . . Ballistic Cannon . | . . . Launcher 2 | . . 2 Special Weapon 1 | . . 1 Impact Weapon . | . . . Slashing Weapon . | . . . Piercing Weapon . | . . . Special Melee Weapon . | . . . Unidentified Prototypes . | . . . Parts Lost 7 | . . 7 Power 1 | . . 1 Propulsion 2 | . . 2 Utility 1 | . . 1 Weapon 3 | . . 3 Highest Loss Streak 6 | . . 6 To Critical Strikes . | . . . Average Slot Usage (%) 96 | . 100 95 Engine 13 | . 14 13 Leg 2 | . . 2 Wheel 25 | . 28 24 Device 12 | . 14 12 Storage 14 | . 14 14 Energy Gun 12 | . 14 12 Ballistic Gun 12 | . 14 12 Launcher 1 | . . 1 Special Weapon 1 | . . 1 Peak Build Rating 8 | 7 7 8 Average Rating 6 | 4 7 6 On Entrance 4 | . 7 7 Naked Turns . | . . . Heaviest Build 14 | 14 14 14 Greatest Support 26 | 26 26 26 Greatest Overweight (x) 3 | . . 3 Average Overweight (x) . | . . . Largest Inventory Capacity 8 | 8 8 8 Average Capacity 7 | 6 8 8 Most Carried 8 | 4 4 8 Average Carried 4 | 2 4 5 Final Capacity 8 | 8 8 8 Final Carried 4 | 4 4 2 Class Distribution -------------------- 100% | Mutant Dominant Class ---------------- Mutant | -10/Materials Mutant | -10/Mines Resources | -11 -10 -10 ----------- Run | Yrd Mat Min Matter Collected 162 | 162 . . Remotely . | . . . Salvage Created 72 | 72 . . Parts 7 | 7 . . Haulers Intercepted . | . . . Recyclers Shooed . | . . . Parts Field Recycled . | . . . Retrieved Matter . | . . . Parts Self-Destructed . | . . . Prevented . | . . . Kills | -11 -10 -10 ------- Run | Yrd Mat Min Combat Hostiles Destroyed . | . . . Classes Destroyed 2 | 2 . . Tunneler 1 | 1 . . Recycler 1 | 1 . . Best Kill Streak 2 | 2 . . Combat Bots Only . | . . . Max Kills in Single Turn 1 | 1 . . Gunslinging . | . . . Exploded . | . . . Melee . | . . . Uniques/NPCs Destroyed . | . . . Combat | -11 -10 -10 -------- Run | Yrd Mat Min Hostile Shots Fired 40 | . . 40 Missed 18 | . . 18 Damage Taken 792 | . . 792 Core 252 | . . 252 Absorbed by Shields . | . . . Core Remaining (%) 100 | 100 . . Volleys Fired 12 | 5 1 6 Largest 2 | 2 2 2 Hottest 70 | 70 70 70 Shots Fired 21 | 10 2 9 Gun 18 | 10 2 6 Cannon . | . . . Launcher 3 | . . 3 Special . | . . . Kinetic 9 | 5 1 3 Thermal 9 | 5 1 3 Explosive 3 | . . 3 Electromagnetic . | . . . Robot Hit Streak 3 | 3 3 3 Robot Miss Streak 1 | 1 . 1 Penetration Max . | . . . Secondary Targets . | . . . Shots Hit Robots 14 | 6 2 6 Core Hits 5 | 3 . 2 Critical Kills . | . . . Critical Parts Destroyed . | . . . Critical Strikes . | . . . Melee Attacks . | . . . Impact . | . . . Slashing . | . . . Piercing . | . . . Sneak Attacks . | . . . Combat Hostiles . | . . . Follow-up Attacks . | . . . Damage Inflicted 136 | 53 21 62 Guns 111 | 53 21 37 Cannons . | . . . Explosions 19 | . . 19 Melee . | . . . Ramming 6 | . . 6 Kinetic 75 | 41 9 25 Thermal 36 | 12 12 12 Explosive 19 | . . 19 Electromagnetic . | . . . Impact . | . . . Slashing . | . . . Piercing . | . . . Highest Corruption 2 | . . 2 Average Corruption 2 | . . 2 Corruption Purged . | . . . Corruption Blocked . | . . . Effects 3 | . . 3 Message Errors 1 | . . 1 Data Loss (minor) 1 | . . 1 Data Loss (major) 1 | . . 1 Overload Shots . | . . . Overflow Damage . | . . . Projectiles . | . . . Explosions . | . . . Melee . | . . . Knockbacks . | . . . Impact . | . . . Kinetic . | . . . Secondary . | . . . Self-Inflicted Damage 3 | . . 3 Shots . | . . . Rammed 2 | . . 2 Targets Rammed 2 | . . 2 Kicked . | . . . Crushed . | . . . Highest Temperature 60 | 60 30 40 Average Temperature 25 | 29 18 21 Received Heat Transfer . | . . . Siege Activations . | . . . Robots Corrupted . | . . . Combat Hostiles . | . . . Parts Fried . | . . . Impact Corruptions . | . . . Robots Melted . | . . . Combat Hostiles . | . . . Parts Melted . | . . . Heat Transferred 111 | 37 37 37 Parts Sabotaged . | . . . Parts Stolen . | . . . Parts Stripped . | . . . Power Chain Reactions . | . . . Alert | -11 -10 -10 ------- Run | Yrd Mat Min Peak Influence 21 | 10 21 7 Initial 7 | . 6 7 Average 8 | 2 20 5 Maximum Alert Level . | . . . Low Security (%) 100 | 100 100 100 Level 1 . | . . . Level 2 . | . . . Level 3 . | . . . Level 4 . | . . . Level 5 . | . . . High Security . | . . . Max Security . | . . . Squads Dispatched 1 | . 1 . Investigation . | . . . Extermination . | . . . Reinforcement 1 | . 1 . Assault . | . . . Garrison . | . . . Intercept . | . . . Searches Triggered . | . . . Construction Impeded . | . . . Haulers Reinforced . | . . . Active Scanning Responses . | . . . Cargo Convoy Interrupts . | . . . Stealth | -11 -10 -10 --------- Run | Yrd Mat Min Distress Signals 1 | . 1 . Communications Jammed . | . . . Distress Signals . | . . . Times Spotted 8 | . 3 5 Peak Tracking Total 2 | . 2 2 Tactical Retreats 1 | . . 1 Traps | -11 -10 -10 ------- Run | Yrd Mat Min Traps Triggered . | . . . Indirectly . | . . . Trap Hack Attempts . | . . . Triggered . | . . . Disarmed . | . . . Reprogrammed . | . . . Reused . | . . . Traps Extracted . | . . . Installed . | . . . Triggered . | . . . Machines | -11 -10 -10 ---------- Run | Yrd Mat Min Machines Disabled . | . . . Max in Single Turn . | . . . Machines Repaired . | . . . Machines Dismantled . | . . . Machines Sabotaged . | . . . Overloaded Fab Kills . | . . . Hacking | -11 -10 -10 --------- Run | Yrd Mat Min Machines Accessed 1 | . 1 . Terminals 1 | . 1 . Fabricators . | . . . Repair Stations . | . . . Recycling Units . | . . . Scanalyzers . | . . . Garrison Access . | . . . Total Hacks 2 | . 2 . Successful . | . . . Failed 2 | . 2 . Catastrophic 2 | . 2 . Database Lockouts . | . . . Manual 2 | . 2 . Terminals 2 | . 2 . Fabricators . | . . . Repair Stations . | . . . Recycling Units . | . . . Scanalyzers . | . . . Garrison Access . | . . . Terminal Hacks . | . . . Fabricator Hacks . | . . . Repair Station Hacks . | . . . Recycling Unit Hacks . | . . . Scanalyzer . | . . . Garrison Access Hacks . | . . . Unauthorized Hacks . | . . . Terminals . | . . . Fabricators . | . . . Repair Stations . | . . . Recycling Units . | . . . Scanalyzers . | . . . Garrison Access . | . . . Data Cores Recovered . | . . . Used . | . . . Hacking Detections 1 | . 1 . Full Trace Events . | . . . Feedback Events . | . . . Feedback Blocked . | . . . Robot Schematics Acquired . | . . . Robots Built . | . . . Authchips . | . . . Time . | . . . Total Robot Build Rating . | . . . Part Schematics Acquired . | . . . Parts Built . | . . . Authchips . | . . . Time . | . . . Total Part Build Rating . | . . . Parts Repaired . | . . . Time . | . . . Parts Recycled . | . . . Recycled Matter . | . . . Retrieved Matter . | . . . Retrieved Components . | . . . Parts Scanalyzed . | . . . Part Schematics Acquired . | . . . Parts Damaged . | . . . Bothacking | -11 -10 -10 ------------ Run | Yrd Mat Min Used RIF Installer . | . . . Robots Hacked . | . . . Non-combat . | . . . Combat . | . . . Robot Hacks Applied . | . . . Relay Couplers Released . | . . . Fabnet Peak Effective % . | . . . Robots Rewired . | . . . Allies Hacked . | . . . Hacks Repelled . | . . . Allies | -11 -10 -10 -------- Run | Yrd Mat Min Total Allies . | . . . Largest Group . | . . . Highest-Rated Group . | . . . Highest-Rated Ally . | . . . Total Orders . | . . . Ally Attacks . | . . . Total Damage . | . . . Kills . | . . . Allies Corrupted . | . . . Allies Melted . | . . . Intel | -11 -10 -10 ------- Run | Yrd Mat Min Robot Analysis Total . | . . . Derelict Logs Recovered 1 | . . 1 Drone Launches . | . . . Drone Recoveries . | . . . Exploration | -11 -10 -10 ------------- Run | Yrd Mat Min Turns Passed 489 | 75 103 311 Spaces Moved 446 | 56 89 301 Core 16 | 7 . 9 Treads . | . . . Legs 11 | . . 11 Wheels 419 | 49 89 281 Hover . | . . . Flight . | . . . Fastest Speed 50 | 50 90 90 Average Speed 90 | 83 90 91 Slowest Speed 200 | 90 90 200 Overloaded Moves . | . . . Propulsion Burnouts . | . . . Robots Hopped . | . . . Cave-ins Triggered . | . . . Exploration Rate (%) 30 | 4 18 70 Regions Visited 2 Branch Regions 1 Pre-discovered Areas . | . . . Known Exits Taken . | . . . Unknown Exits Taken 2 | 1 1 . Scrap Searched 1 | . . 1 Spaces Dug . | . . . Terrain Destroyed 7 | . . 7 Melee . | . . . Projectile . | . . . AOE 7 | . . 7 Terrain Rammed . | . . . Walls Destroyed . | . . . Machines Disabled . | . . . Actions | -11 -10 -10 --------- Run | Yrd Mat Min Total 507 | 71 109 327 Wait 28 | . 20 8 Move 444 | 55 88 301 Hop . | . . . Pick Up 8 | 4 . 4 Fast Attach 7 | 7 . . Attach 6 | . . 6 Detach . | . . . Swap . | . . . Drop . | . . . Fire 12 | 5 1 6 Melee . | . . . Ram 2 | . . 2 Kick . | . . . Crush . | . . . Escape Stasis . | . . . Rewire . | . . . Trap . | . . . Miscellaneous . | . . . Route ------- -11/Scrapyard -10/Materials -10/Mines History --------- Turn | Location | Event 15 | -11/Scrapyard | Discovered new exit (range 16) 76 | -11/Scrapyard | Entered Materials 168 | -10/Materials | Discovered new exit (range 11) 179 | -10/Materials | Entered Mines 203 | -10/Mines | Received a Rocket Launcher from a helpful Derelict 273 | -10/Mines | Learned location of 1 exit from Materials 318 | -10/Mines | Build established: Mutant 386 | -10/Mines | YI-UF0 nonchalantly dropped a Grenade Launcher on the ground 406 | -10/Mines | Found a damaged Exp. Sensor Array with a note attached 408 | -10/Mines | Found Prototype Device 458 | -10/Mines | Core integrity fell below 50% 462 | -10/Mines | Core integrity fell below 20% 488 | -10/Mines | Lost 6 parts (1p2n1u2w) 490 | -10/Mines | Destroyed by YI-UF0 with YI-UF0's Doublenader Last Messages --------------- 00437_ K-01 Serf collects debris. 00439_ YI-UF0: "BLAM!" 00439_ S-10 Pest destroyed. 00440_ YI-UF0: "Whaaaaaaaa!" 00445_ Com. Wheel destroyed. 00447_ The unstable cave ceiling collapses. 00447_ K-01 Serf destroyed. 00453_ YI-UF0 mumbles something. 00455_ Med. Laser destroyed. 00455_ Seismic Detector destroyed. 00455_ Wheel destroyed. 00456_ The unstable cave ceiling collapses. 00457_ YI-UF0 mumbles something. 00457_ Ion Engine destroyed. 00457_ Lgt. Assault Rifle destroyed. 00458_ YI-UF0 mumbles something. 00458_ The unstable cave ceiling collapses. 00488_ Grenade Launcher destroyed. 00489_ YI-UF0 mumbles something. 00490_ The unstable cave ceiling collapses. Map ----- +----------------------------------------------------+ | | | | | ??????????????????????????????????????????? | | ??????????????????????????????????????????? | | ??????????????????????????????????????????? | | ???????????????????????????####????????#### | | ????????????????????####??## ##??????## | | ??????????????????### #?# ######## | | ??????????????????# ### | | ??########????????# ## # | | ??# #????????# ## ######## | | ??# #######??# ### #??????### | | ??# #??# ### #????????? | | ??# #### #??## #????????? | | ??# """ #??# #???## #????????? | | ??# """ #??# #?#### ####????????? | | ??# """ #??# #?# #???????????? | | ??########??# #?# ##???????????? | | ????????????# #?# # #??????????? | | ????????????# #?# ##?????????? | | ????????????# t#### # ##????????? | | ????????????# ## ####??????? | | ????????????# #??????? | | ????????????# ##?????? | | ????????????# #?????? | | ????????????## @ g #?????? | | ????????????## #?????? | | ???????###### #????? | | ??????## ## # = #????? | | ??????# # # * #????? | | ??????# ##??#??? ?????? | | ??????## #???????#??????? | | ???????## t #??????????????? | | ????????# ##??????????????? | | ???????## ###???????????????? | | ???????# ######????????????????? | | ???????# ##????????????????????? | | ???????# #### ##???????????????????? | | ???????# #??# #???????? ??????????? | | ???????# ##?# #??????? ??????????? | | ??????## ### #??????? #?????????? | | ??????# ### ##??????? ?????????? | | ??????# ## #????????? #????????? | | ??????## ### #????????? #????????? | | ???????### ##?#### #????####? ##???????? | | ??????????#########= #?? #?# ##??????? | | ?????????????# %[# ### ##?????? | | ?????????????# #### ## ##????? | | ?????????????# #??#### ## #????? | | ???????????### #??????""" ## #????? | +----------------------------------------------------+ Best States ------------- Heat Dissipation 25 Energy Generation 10 Energy Capacity 250 Matter Stores 222 Matter Capacity 300 Sight Range 16 Terrain Scan Density 10 Evasion (%) 55 Item Schematics ----------------- None Robot Schematics ------------------ None Fabricated ------------ Nothing Alien Tech Used ----------------- None Achievements -------------- None Challenges ------------ None Game ------ Seed RelayActiveModule Manual? 0 Play Time 00:06:31 Cumulative 67.1 hours Start 2024.10.05 @ 16:21:24 End 2024.10.05 @ 16:25:47 Sessions 1 Manual Loads 0 Difficulty Rogue Special Mode None Game No. 74 Rogue 74 Adventurer 0 Explorer 0 Win Type - Total 1 Types 1/0/0/0/0/0/0/0/0 Lore% 25 Gallery% 48 Achievement% 33 Wizard Run 0 Options --------- Layout 2 ASCII 0 Keyboard 1 Movement Numpad Keybinds 0 Fullscreen 1 Font 24/Smallcaps Map View 50x44 Zoom Use 0% Tactical HUD 1 Map Filters NONE Filters LOW_CONTRAST(5,10,15) Steam 1 RUN: 4319f92f-6485-4d02-a0aa-b60fafd98d43